fUST/lending_fUST_20260602
["ID","MTS","AMOUNT","RATE_DAILY","PERIOD"]
[423751809,1780384250000,-434.79837443,0.00017377,2]
[423751801,1780384250000,-326.4359019,0.00017357,2]
[423751808,1780384250000,-518.04664365,0.00017377,2]
[423751800,1780384250000,-151.0,0.000173,2]
[423751803,1780384250000,-208.56497543,0.00017357,2]
[423751804,1780384250000,-346.48418971,0.00017357,2]
[423751807,1780384250000,-700.20500835,0.00017377,2]
[423751806,1780384250000,-408.28619031,0.00017376,2]
[423751811,1780384250000,-431.33456189,0.00017377,2]
[423751812,1780384250000,-398.26726161,0.00017377,2]
[423751810,1780384250000,-405.89995497,0.00017377,2]
[423751824,1780384250000,-220.92270542,0.00017379,2]
[423751814,1780384250000,-396.96534711,0.00017377,2]
[423751885,1780384251000,-205.999022,0.00017915,2]
[423751902,1780384251000,-1000.0,0.000181,2]
[423751880,1780384251000,-187.34155341,0.0001783,2]
[423751883,1780384251000,-150.37,0.000179,2]
[423751882,1780384251000,-184.243949,0.00017898,2]
[423751877,1780384251000,-198.58309519,0.0001783,2]
[423751879,1780384251000,-158.86453089,0.0001783,2]
[423751887,1780384251000,-1000.0,0.00018,2]
[423751886,1780384251000,-1000.0,0.00018,2]
[423751878,1780384251000,-176.56190444,0.0001783,2]
[423751884,1780384251000,-10007.15067404,0.000179,2]
[423751881,1780384251000,-153.91059932,0.0001783,2]
[423751888,1780384251000,-1000.0,0.00018,2]
[423751892,1780384251000,-1000.0,0.00018,2]
[423751899,1780384251000,-465.83953229,0.00018082,2]
[423751900,1780384251000,-1373.71,0.00018082,2]
[423751890,1780384251000,-1000.0,0.00018,2]
[423751891,1780384251000,-1000.0,0.00018,2]
[423751893,1780384251000,-1000.0,0.00018,2]
[423751894,1780384251000,-2694.0,0.00018,3]
[423751895,1780384251000,-1000.0,0.00018,2]
[423751896,1780384251000,-828.0,0.00018033,2]
[423751898,1780384251000,-634.14,0.00018082,2]
[423751897,1780384251000,-738.75,0.00018082,2]
[423751901,1780384251000,-1000.0,0.000181,2]
[423751870,1780384251000,-166.97733372,0.00017822,2]
[423751889,1780384251000,-1000.0,0.00018,2]
[423751871,1780384251000,-195.28183436,0.00017822,2]
[423751860,1780384251000,-500.0,0.00017808,2]
[423751864,1780384251000,-182.34377568,0.00017814,2]
[423751903,1780384251000,-151.0,0.000181,2]
[423751850,1780384251000,-151.0,0.000176,2]
[423751848,1780384251000,-260.825399,0.00017542,2]
[423751847,1780384251000,-500.0,0.00017534,2]
[423751846,1780384251000,-500.0,0.00017534,2]
[423751862,1780384251000,-151.58036028,0.00017808,2]
[423751852,1780384251000,-163.601223,0.0001764,2]
[423751851,1780384251000,-10007.15067404,0.000176,2]
[423751853,1780384251000,-173.8836,0.0001764,2]
[423751863,1780384251000,-197.57518495,0.00017808,2]
[423751857,1780384251000,-10007.15067404,0.000178,2]
[423751861,1780384251000,-1373.71,0.00017808,2]
[423751854,1780384251000,-856.60214761,0.00017721,2]
[423751858,1780384251000,-738.75,0.00017808,2]
[423751856,1780384251000,-198.01304264,0.000178,30]
[423751855,1780384251000,-866.1497669,0.00017721,2]
[423751849,1780384251000,-211.491944,0.00017542,2]
[423751859,1780384251000,-634.14,0.00017808,2]
[423751865,1780384251000,-164.06869149,0.00017814,2]
[423751873,1780384251000,-157.33348959,0.0001783,2]
[423751876,1780384251000,-183.94607162,0.0001783,2]
[423751874,1780384251000,-187.64240979,0.0001783,2]
[423751875,1780384251000,-158.16405337,0.0001783,2]
[423751867,1780384251000,-156.64061324,0.00017814,2]
[423751872,1780384251000,-213.392899,0.00017827,2]
[423751869,1780384251000,-194.52571397,0.00017822,2]
[423751866,1780384251000,-183.15837561,0.00017814,2]
[423751868,1780384251000,-206.110021,0.00017816,2]
[423751905,1780384251000,-824.0,0.0001814,2]
[423751947,1780384251000,-154.09,0.00019426,2]
[423751904,1780384251000,-10007.15067404,0.000181,2]
[423751935,1780384251000,-1199.24300665,0.00019007,2]
[423751939,1780384251000,-150.37,0.000191,2]
[423751942,1780384251000,-634.14,0.00019178,2]
[423751941,1780384251000,-738.75,0.00019178,2]
[423751940,1780384251000,-10007.15067404,0.000191,2]
[423751943,1780384251000,-1373.71,0.00019178,2]
[423751945,1780384251000,-293.677704,0.00019331,2]
[423751944,1780384251000,-3176.84825927,0.00019205,5]
[423751946,1780384251000,-154.01,0.00019348,2]
[423751950,1780384251000,-738.75,0.00019452,2]
[423751949,1780384251000,-13204.24479475,0.00019452,3]
[423751951,1780384251000,-634.14,0.00019452,2]
[423751953,1780384251000,-185.0,0.00019521,2]
[423751954,1780384251000,-444.0,0.00019521,2]
[423751956,1780384251000,-300.0,0.00019589,3]
[423751955,1780384251000,-421.578,0.00019531,2]
[423751952,1780384251000,-1373.71,0.00019452,2]
[423751957,1780384251000,-738.75,0.00019726,2]
[423751958,1780384251000,-634.14,0.00019726,2]
[423751948,1780384251000,-204.81027623,0.00019436,30]
[423751959,1780384251000,-1373.71,0.00019726,2]
[423751960,1780384251000,-154.27,0.00019986,2]
[423751961,1780384251000,-160.0,0.0002,3]
[423751963,1780384251000,-738.98244601,0.0002,2]
[423751962,1780384251000,-218.95289599,0.0002,7]
[423751964,1780384251000,-634.33,0.0002,2]
[423751912,1780384251000,-634.14,0.00018356,2]
[423751936,1780384251000,-1212.60967366,0.00019007,2]
[423751934,1780384251000,-3682.93133313,0.00019,2]
[423751965,1780384251000,-205.53332743,0.0002,2]
[423751929,1780384251000,-10007.15067404,0.000189,2]
[423751907,1780384251000,-1027.92257713,0.00018236,2]
[423751913,1780384251000,-1373.71,0.00018356,2]
[423751906,1780384251000,-824.0,0.0001814,2]
[423751910,1780384251000,-10007.15067404,0.000183,2]
[423751911,1780384251000,-738.75,0.00018356,2]
[423751908,1780384251000,-1039.37972028,0.00018236,2]
[423751914,1780384251000,-824.0,0.00018396,2]
[423751925,1780384251000,-206.18402,0.00018707,2]
[423751915,1780384251000,-795.0,0.000184,2]
[423751923,1780384251000,-1373.71,0.0001863,2]
[423751918,1780384251000,-267.1812174,0.00018544,2]
[423751919,1780384251000,-250.0,0.00018603,2]
[423751917,1780384251000,-226.800995,0.00018526,2]
[423751909,1780384251000,-708.166,0.00018238,2]
[423751916,1780384251000,-10007.15067404,0.000185,2]
[423751924,1780384251000,-10007.15067404,0.000187,2]
[423751930,1780384251000,-738.75,0.00018904,2]
[423751928,1780384251000,-204.81027623,0.00018826,30]
[423751933,1780384251000,-152.0,0.00018966,30]
[423751926,1780384251000,-1000.0,0.0001873,2]
[423751932,1780384251000,-1373.71,0.00018904,2]
[423751931,1780384251000,-634.14,0.00018904,2]
[423751938,1780384251000,-190.07507,0.00019063,2]
[423751927,1780384251000,-244.0,0.0001873,2]
[423751920,1780384251000,-279.928877,0.0001862,2]
[423751921,1780384251000,-738.75,0.0001863,2]
[423751922,1780384251000,-634.14,0.0001863,2]
[423751937,1780384251000,-824.0,0.00019036,2]
[423751982,1780384252000,-156.17,0.00020228,2]
[423751978,1780384252000,-653.49884394,0.00020098,2]
[423751977,1780384252000,-651.0,0.00020098,2]
[423751975,1780384252000,-651.0,0.00020098,2]
[423751976,1780384252000,-651.0,0.00020098,2]
[423751984,1780384252000,-264.309934,0.00020298,2]
[423751985,1780384252000,-204.81027624,0.00020326,7]
[423751983,1780384252000,-345.591036,0.00020291,2]
[423751974,1780384252000,-651.0,0.00020098,2]
[423751968,1780384252000,-651.0,0.00020098,2]
[423751966,1780384252000,-1373.82732839,0.0002,2]
[423751970,1780384252000,-651.0,0.00020098,2]
[423751967,1780384252000,-204.81027623,0.00020046,30]
[423751971,1780384252000,-651.0,0.00020098,2]
[423751972,1780384252000,-651.0,0.00020098,2]
[423751973,1780384252000,-651.0,0.00020098,2]
[423751969,1780384252000,-651.0,0.00020098,2]
[423751981,1780384252000,-150.37,0.000202,2]
[423751979,1780384252000,-1370.56343618,0.00020164,2]
[423751980,1780384252000,-1385.83962704,0.00020164,2]
[423752000,1780384252000,-47465.9505251,0.00021,2]
[423751997,1780384252000,-500.0,0.00014246,2]
[423751998,1780384252000,-500.0,0.0001452,2]
[423751996,1780384252000,-1985.2,0.00021,2]
[423751995,1780384252000,-5000.0,0.00012773,2]
[423751993,1780384252000,-204.81027624,0.00020936,7]
[423751999,1780384252000,-3847.86676726,0.00021,2]
[423751992,1780384252000,-156.03,0.00020867,2]
[423751991,1780384252000,-160.0,0.00020835,4]
[423751990,1780384252000,-492.0,0.00020603,2]
[423751988,1780384252000,-155.66,0.00020524,2]
[423751989,1780384252000,-1000.0,0.00020603,2]
[423751987,1780384252000,-824.0,0.00020449,2]
[423751994,1780384252000,-149196.5694744,0.00021,2]
[423751986,1780384252000,-160.0,0.00020354,3]
[423752311,1780384797000,-1000.0,0.00011601,2]
[423752312,1780384799000,-1000.0,0.00011601,2]
[423752313,1780384800000,-1000.0,0.00011601,2]
[423752314,1780384801000,-1000.0,0.00011601,2]
[423752316,1780384802000,-1000.0,0.00011601,2]
[423752315,1780384802000,-1000.0,0.00011601,2]
[423752317,1780384804000,-1000.0,0.00011601,2]
[423752318,1780384805000,-1000.0,0.00011601,2]
[423752319,1780384806000,-1000.0,0.00011601,2]
[423752320,1780384807000,-1000.0,0.00011601,2]
[423752321,1780384808000,-1000.0,0.00011601,2]
[423752324,1780384809000,-461.2133054,0.00011812,2]
[423752322,1780384809000,-238.7866946,0.00011601,2]
[423752323,1780384809000,-300.0,0.00011811,2]
[423752325,1780384811000,-1000.0,0.00011812,2]
[423752326,1780384812000,-1000.0,0.00011812,2]
[423752327,1780384814000,-1000.0,0.00011812,2]
[423752328,1780384815000,-1000.0,0.00011812,2]
[423752329,1780384816000,-538.7866946,0.00011812,2]
[423752330,1780384816000,-461.2133054,0.00011931,2]
[423752331,1780384817000,-1000.0,0.00011931,2]
[423752332,1780384818000,-384.00920682,0.00011931,2]
[423752333,1780384821000,615.99079318,0.00011812,2]
[423752334,1780384822000,-1000.0,0.00011812,2]
[423752337,1780384843000,-1000.0,0.00011694,2]
[423752338,1780384844000,-1000.0,0.00011694,2]
[423752339,1780384845000,-1000.0,0.00011694,2]
[423752340,1780384846000,-1000.0,0.00011694,2]
[423752341,1780384847000,-1000.0,0.00011694,2]
[423752342,1780384854000,-1000.0,0.00011812,2]
[423752344,1780384855000,-1000.0,0.00011812,2]
[423752343,1780384855000,-1000.0,0.00011812,2]
[423752346,1780384861000,-1000.0,0.00011694,2]
[423752347,1780384862000,-1000.0,0.00011694,2]
[423752348,1780384863000,-1000.0,0.00011694,2]
[423752349,1780384864000,-1000.0,0.00011694,2]
[423752350,1780384865000,-1000.0,0.00011694,2]
[423752351,1780384884000,-1000.0,0.00011694,2]
[423752352,1780384885000,-1000.0,0.00011694,2]
[423752354,1780384886000,-1000.0,0.00011694,2]
[423752353,1780384886000,-1000.0,0.00011694,2]
[423752355,1780384887000,-1000.0,0.00011694,2]
[423752358,1780384905000,-1000.0,0.00011694,2]
[423752357,1780384905000,-1000.0,0.00011694,2]
[423752359,1780384906000,-1000.0,0.00011694,2]
[423752360,1780384907000,-1000.0,0.00011694,2]
[423752361,1780384908000,-1000.0,0.00011694,2]
[423752362,1780384927000,-1000.0,0.00011694,2]
[423752363,1780384928000,-1000.0,0.00011694,2]
[423752364,1780384929000,-1000.0,0.00011694,2]
[423752365,1780384929000,2315.82429946,0.000199,120]
[423752367,1780384930000,-1000.0,0.00011694,2]
[423752366,1780384930000,-1000.0,0.00011694,2]
[423752370,1780384958000,-1000.0,0.00011694,2]
[423752369,1780384958000,-1000.0,0.00011694,2]
[423752371,1780384959000,-1000.0,0.00011694,2]
[423752376,1780384960000,-357.17572998,0.00012,2]
[423752374,1780384960000,-384.00920682,0.00011812,2]
[423752373,1780384960000,-1000.0,0.00011694,2]
[423752372,1780384960000,-1000.0,0.00011694,2]
[423752375,1780384960000,-258.8150632,0.00011999,2]
[423752377,1780384972000,300000.0,0.00022868,30]
[423752378,1780384979000,300000.0,0.00022868,30]
[423752379,1780384989000,300000.0,0.00022868,30]
[423752380,1780384995000,300000.0,0.00022868,30]
[423752381,1780384999000,-827.64465159,0.00011761,2]
[423752382,1780384999000,-172.35534841,0.0001188,2]
[423752383,1780385000000,-1000.0,0.0001188,2]
[423752386,1780385001000,-1000.0,0.0001188,2]
[423752385,1780385001000,300000.0,0.00022868,30]
[423752384,1780385001000,-1000.0,0.0001188,2]
[423752388,1780385002000,-1000.0,0.0001188,2]
[423752389,1780385007000,-827.64465159,0.0001188,2]
[423752390,1780385007000,-172.35534841,0.00011999,2]
[423752391,1780385013000,70000.0,0.00022868,30]
[423752394,1780385157000,-1000.0,0.00011879,2]
[423752395,1780385158000,-1000.0,0.00011879,2]
[423752400,1780385158000,-155.63644493,0.00012,2]
[423752399,1780385158000,-181.17054424,0.00011999,2]
[423752396,1780385158000,-342.19301083,0.00011879,2]
[423752398,1780385158000,-161.0,0.00011999,2]
[423752397,1780385158000,-160.0,0.00011879,2]
[423752403,1780385266000,-1000.0,0.00012,2]
[423752402,1780385266000,-1000.0,0.00012,2]
[423752404,1780385268000,-1000.0,0.00012,2]
[423752411,1780385418000,-5000.0,0.00012,2]
[423752422,1780385432000,-8899.3554174,0.00012,2]
[423752421,1780385432000,-30335.13957624,0.00012,2]
[423752420,1780385432000,-673.65800602,0.00012,2]
[423752418,1780385432000,-670.94,0.00012,2]
[423752419,1780385432000,-3600.84761609,0.00012,2]
[423752416,1780385432000,-2044.6527224,0.00012,2]
[423752415,1780385432000,-5000.0,0.00012,2]
[423752417,1780385432000,-653.0,0.00012,2]
[423752424,1780385436000,-5000.0,0.00012,2]
[423752426,1780385440000,-5000.0,0.00012,2]
[423752437,1780385441000,-29388.93873251,0.00012,2]
[423752434,1780385441000,-57352.64257407,0.00012,2]
[423752435,1780385441000,-1043.44113708,0.00012,2]
[423752436,1780385441000,-2533.40494975,0.00012,2]
[423752438,1780385441000,-162.17,0.00012,2]
[423752439,1780385441000,-166.98826091,0.0001242,2]
[423752441,1780385441000,-1012.06582326,0.00012801,4]
[423752443,1780385441000,-1609.06079025,0.00013598,2]
[423752442,1780385441000,-258592.1536727,0.00013598,2]
[423752444,1780385441000,-3585.36740699,0.00013598,2]
[423752445,1780385441000,-491.23442118,0.00013598,2]
[423752440,1780385441000,-160.3224683,0.0001252,2]
[423752447,1780385442000,-1128.17371129,0.00013598,2]
[423752448,1780385442000,-7375.93211778,0.00013598,2]
[423752449,1780385442000,-85769.86547372,0.00013598,2]
[423752450,1780385442000,-6332.39815017,0.00013598,2]
[423752452,1780385442000,-33732.09613027,0.00013598,2]
[423752453,1780385442000,-3255.30886204,0.00013598,2]
[423752451,1780385442000,-40099.7549574,0.00013598,2]
[423752469,1780385444000,-8866.07543023,0.00013598,2]
[423752465,1780385444000,-382.91828592,0.00013598,2]
[423752468,1780385444000,-1312.40132142,0.00013598,2]
[423752466,1780385444000,-48011.38165589,0.00013598,2]
[423752470,1780385444000,-1588.66910052,0.00013598,2]
[423752467,1780385444000,-21477.39501847,0.00013598,2]
[423752472,1780385444000,-1000.0,0.00013598,2]
[423752464,1780385444000,-300.0,0.00013598,2]
[423752471,1780385444000,-407.64,0.00013598,2]
[423752505,1780385447000,-503.31952954,0.00013698,2]
[423752501,1780385447000,-505.63870615,0.00013698,2]
[423752512,1780385447000,-500.0,0.00013698,2]
[423752509,1780385447000,-500.0,0.00013698,2]
[423752521,1780385447000,-152.4782685,0.00013698,2]
[423752515,1780385447000,-500.0,0.00013698,2]
[423752511,1780385447000,-500.0,0.00013698,2]
[423752520,1780385447000,-431.98,0.00013698,2]
[423752514,1780385447000,-500.0,0.00013698,2]
[423752516,1780385447000,-500.0,0.00013698,2]
[423752513,1780385447000,-500.0,0.00013698,2]
[423752519,1780385447000,-365.99,0.00013698,2]
[423752510,1780385447000,-500.0,0.00013698,2]
[423752518,1780385447000,-638.73649369,0.00013698,2]
[423752523,1780385447000,-500.0,0.00013698,2]
[423752534,1780385447000,-500.0,0.00013698,2]
[423752533,1780385447000,-500.0,0.00013698,2]
[423752522,1780385447000,-500.0,0.00013698,2]
[423752529,1780385447000,-500.0,0.00013698,2]
[423752528,1780385447000,-500.0,0.00013698,2]
[423752525,1780385447000,-500.0,0.00013698,2]
[423752526,1780385447000,-500.0,0.00013698,2]
[423752524,1780385447000,-500.0,0.00013698,2]
[423752527,1780385447000,-500.0,0.00013698,2]
[423752530,1780385447000,-500.0,0.00013698,2]
[423752532,1780385447000,-500.0,0.00013698,2]
[423752531,1780385447000,-500.0,0.00013698,2]
[423752517,1780385447000,-500.0,0.00013698,2]
[423752503,1780385447000,-500.0,0.00013698,2]
[423752502,1780385447000,-500.0,0.00013698,2]
[423752508,1780385447000,-385.57561847,0.00013698,2]
[423752536,1780385447000,-500.0,0.00013698,2]
[423752478,1780385447000,-1093.92499483,0.00013598,2]
[423752479,1780385447000,-189293.55455412,0.00013598,2]
[423752477,1780385447000,-751.50978022,0.00013598,2]
[423752480,1780385447000,-3854.8479882,0.00013599,2]
[423752481,1780385447000,-167.8898845,0.00013686,2]
[423752483,1780385447000,-300.0,0.00013692,2]
[423752484,1780385447000,-300.0,0.00013692,2]
[423752485,1780385447000,-300.0,0.00013692,2]
[423752486,1780385447000,-300.0,0.00013692,2]
[423752491,1780385447000,-300.0,0.00013692,2]
[423752482,1780385447000,-300.0,0.00013692,2]
[423752488,1780385447000,-300.0,0.00013692,2]
[423752490,1780385447000,-300.0,0.00013692,2]
[423752489,1780385447000,-300.0,0.00013692,2]
[423752487,1780385447000,-300.0,0.00013692,2]
[423752494,1780385447000,-300.0,0.00013692,2]
[423752492,1780385447000,-300.0,0.00013692,2]
[423752493,1780385447000,-300.0,0.00013692,2]
[423752496,1780385447000,-300.0,0.00013692,2]
[423752506,1780385447000,-500.0,0.00013698,2]
[423752507,1780385447000,-500.0,0.00013698,2]
[423752497,1780385447000,-500.0,0.00013698,2]
[423752498,1780385447000,-500.0,0.00013698,2]
[423752495,1780385447000,-300.0,0.00013692,2]
[423752499,1780385447000,-500.0,0.00013698,2]
[423752500,1780385447000,-500.0,0.00013698,2]
[423752504,1780385447000,-535.89,0.00013698,2]
[423752546,1780385447000,-217.6,0.00013698,2]
[423752539,1780385447000,-293.949433,0.00013698,2]
[423752537,1780385447000,-500.0,0.00013698,2]
[423752567,1780385447000,-868.83,0.00013698,2]
[423752569,1780385447000,-868.83,0.00013698,2]
[423752571,1780385447000,-868.83,0.00013698,2]
[423752568,1780385447000,-868.83,0.00013698,2]
[423752572,1780385447000,-868.83,0.00013698,2]
[423752577,1780385447000,-868.83,0.00013698,2]
[423752576,1780385447000,-501.6709038,0.00013698,2]
[423752583,1780385447000,-625.18,0.00013698,2]
[423752578,1780385447000,-868.83,0.00013698,2]
[423752585,1780385447000,-625.18,0.00013698,2]
[423752582,1780385447000,-500.57680169,0.00013698,2]
[423752579,1780385447000,-869.00896212,0.00013698,2]
[423752581,1780385447000,-500.0,0.00013698,2]
[423752566,1780385447000,-868.83,0.00013698,2]
[423752584,1780385447000,-625.18,0.00013698,2]
[423752589,1780385447000,-625.18,0.00013698,2]
[423752588,1780385447000,-625.18,0.00013698,2]
[423752587,1780385447000,-625.18,0.00013698,2]
[423752590,1780385447000,-625.18,0.00013698,2]
[423752597,1780385447000,-625.18,0.00013698,2]
[423752598,1780385447000,-625.18,0.00013698,2]
[423752591,1780385447000,-625.18,0.00013698,2]
[423752592,1780385447000,-625.18,0.00013698,2]
[423752596,1780385447000,-625.18,0.00013698,2]
[423752593,1780385447000,-625.18,0.00013698,2]
[423752594,1780385447000,-625.18,0.00013698,2]
[423752535,1780385447000,-311.61,0.00013698,2]
[423752595,1780385447000,-625.18,0.00013698,2]
[423752586,1780385447000,-625.18,0.00013698,2]
[423752565,1780385447000,-868.83,0.00013698,2]
[423752580,1780385447000,-500.0,0.00013698,2]
[423752564,1780385447000,-868.83,0.00013698,2]
[423752548,1780385447000,-3329.2653,0.00013698,2]
[423752547,1780385447000,-500.0,0.00013698,2]
[423752570,1780385447000,-868.83,0.00013698,2]
[423752538,1780385447000,-181.03,0.00013698,2]
[423752540,1780385447000,-500.0,0.00013698,2]
[423752542,1780385447000,-195.31,0.00013698,2]
[423752543,1780385447000,-500.0,0.00013698,2]
[423752545,1780385447000,-500.0,0.00013698,2]
[423752544,1780385447000,-500.0,0.00013698,2]
[423752550,1780385447000,-164.83596564,0.00013698,2]
[423752549,1780385447000,-385.18207492,0.00013698,2]
[423752552,1780385447000,-500.0,0.00013698,2]
[423752560,1780385447000,-868.83,0.00013698,2]
[423752551,1780385447000,-226.72,0.00013698,2]
[423752541,1780385447000,-292.91234293,0.00013698,2]
[423752553,1780385447000,-500.0,0.00013698,2]
[423752561,1780385447000,-868.83,0.00013698,2]
[423752555,1780385447000,-868.83,0.00013698,2]
[423752562,1780385447000,-868.83,0.00013698,2]
[423752554,1780385447000,-868.83,0.00013698,2]
[423752557,1780385447000,-868.83,0.00013698,2]
[423752559,1780385447000,-868.83,0.00013698,2]
[423752556,1780385447000,-500.0,0.00013698,2]
[423752575,1780385447000,-868.83,0.00013698,2]
[423752558,1780385447000,-868.83,0.00013698,2]
[423752563,1780385447000,-868.83,0.00013698,2]
[423752573,1780385447000,-868.83,0.00013698,2]
[423752574,1780385447000,-868.83,0.00013698,2]
[423752655,1780385448000,-502.28778886,0.00013698,2]
[423752643,1780385448000,-500.0,0.00013698,2]
[423752644,1780385448000,-500.0,0.00013698,2]
[423752646,1780385448000,-194.22421446,0.00013698,2]
[423752645,1780385448000,-500.0,0.00013698,2]
[423752638,1780385448000,-502.77757016,0.00013698,2]
[423752634,1780385448000,-511.54751906,0.00013698,2]
[423752629,1780385448000,-500.0,0.00013698,2]
[423752635,1780385448000,-500.0,0.00013698,2]
[423752639,1780385448000,-500.0,0.00013698,2]
[423752633,1780385448000,-500.0,0.00013698,2]
[423752632,1780385448000,-500.0,0.00013698,2]
[423752657,1780385448000,-500.0,0.00013698,2]
[423752637,1780385448000,-500.0,0.00013698,2]
[423752654,1780385448000,-500.0,0.00013698,2]
[423752669,1780385448000,-500.0,0.00013698,2]
[423752647,1780385448000,-503.28702425,0.00013698,2]
[423752649,1780385448000,-500.0,0.00013698,2]
[423752651,1780385448000,-500.0,0.00013698,2]
[423752650,1780385448000,-500.0,0.00013698,2]
[423752652,1780385448000,-500.0,0.00013698,2]
[423752648,1780385448000,-500.0,0.00013698,2]
[423752653,1780385448000,-500.0,0.00013698,2]
[423752658,1780385448000,-500.0,0.00013698,2]
[423752659,1780385448000,-500.0,0.00013698,2]
[423752660,1780385448000,-500.0,0.00013698,2]
[423752662,1780385448000,-500.0,0.00013698,2]
[423752661,1780385448000,-500.0,0.00013698,2]
[423752670,1780385448000,-500.0,0.00013698,2]
[423752642,1780385448000,-500.0,0.00013698,2]
[423752656,1780385448000,-503.98850619,0.00013698,2]
[423752636,1780385448000,-501.95,0.00013698,2]
[423752612,1780385448000,-503.40854112,0.00013698,2]
[423752631,1780385448000,-500.0,0.00013698,2]
[423752664,1780385448000,-500.0,0.00013698,2]
[423752599,1780385448000,-625.18,0.00013698,2]
[423752601,1780385448000,-625.18,0.00013698,2]
[423752611,1780385448000,-502.78289843,0.00013698,2]
[423752600,1780385448000,-625.18,0.00013698,2]
[423752613,1780385448000,-500.0,0.00013698,2]
[423752602,1780385448000,-625.18,0.00013698,2]
[423752608,1780385448000,-500.0,0.00013698,2]
[423752605,1780385448000,-625.18,0.00013698,2]
[423752603,1780385448000,-625.18,0.00013698,2]
[423752609,1780385448000,-501.1329487,0.00013698,2]
[423752606,1780385448000,-625.29818318,0.00013698,2]
[423752610,1780385448000,-502.52098636,0.00013698,2]
[423752607,1780385448000,-500.0,0.00013698,2]
[423752640,1780385448000,-500.67336845,0.00013698,2]
[423752614,1780385448000,-500.0,0.00013698,2]
[423752617,1780385448000,-500.0,0.00013698,2]
[423752615,1780385448000,-500.0,0.00013698,2]
[423752628,1780385448000,-504.81366018,0.00013698,2]
[423752618,1780385448000,-500.0,0.00013698,2]
[423752621,1780385448000,-500.0,0.00013698,2]
[423752622,1780385448000,-500.74948727,0.00013698,2]
[423752624,1780385448000,-500.0,0.00013698,2]
[423752619,1780385448000,-501.17891142,0.00013698,2]
[423752620,1780385448000,-500.0,0.00013698,2]
[423752623,1780385448000,-500.0,0.00013698,2]
[423752627,1780385448000,-501.59956723,0.00013698,2]
[423752626,1780385448000,-500.0,0.00013698,2]
[423752630,1780385448000,-500.0,0.00013698,2]
[423752641,1780385448000,-500.0,0.00013698,2]
[423752616,1780385448000,-440.95048802,0.00013698,2]
[423752671,1780385448000,-500.86345997,0.00013698,2]
[423752604,1780385448000,-625.18,0.00013698,2]
[423752665,1780385448000,-500.0,0.00013698,2]
[423752708,1780385448000,-500.0,0.00013972,2]
[423752706,1780385448000,-603.05202236,0.00013972,2]
[423752703,1780385448000,-501.65374081,0.00013972,2]
[423752704,1780385448000,-500.0,0.00013972,2]
[423752705,1780385448000,-500.0,0.00013972,2]
[423752710,1780385448000,-500.0,0.00013972,2]
[423752720,1780385448000,-500.0,0.00013972,2]
[423752722,1780385448000,-500.0,0.00013972,2]
[423752712,1780385448000,-500.0,0.00013972,2]
[423752709,1780385448000,-502.28075827,0.00013972,2]
[423752721,1780385448000,-500.0,0.00013972,2]
[423752711,1780385448000,-500.0,0.00013972,2]
[423752713,1780385448000,-500.0,0.00013972,2]
[423752719,1780385448000,-500.0,0.00013972,2]
[423752714,1780385448000,-500.0,0.00013972,2]
[423752718,1780385448000,-500.0,0.00013972,2]
[423752716,1780385448000,-500.0,0.00013972,2]
[423752663,1780385448000,-501.82176308,0.00013698,2]